[Event "Early-Titled-Tuesday-Blitz-September-12-2023"]
[Site "Chess.com"]
[Date "2023.09.12"]
[Round "1"]
[White "ferrufino64"]
[Black "MokshAD1603"]
[Result "0-1"]
[WhiteElo "2262"]
[BlackElo "2582"]
[TimeControl "180+1"]
[EndTime "8:06:15 PDT"]
[Termination "MokshAD1603 won by resignation"]

1. e4 {[%clk 0:03:00]} 1... c5 {[%clk 0:02:50.6]} 2. Nf3 {[%clk 0:02:59.6]} 2...
e6 {[%clk 0:02:50.5]} 3. d4 {[%clk 0:02:51.3]} 3... cxd4 {[%clk 0:02:51.4]} 4.
Nxd4 {[%clk 0:02:51.6]} 4... Nc6 {[%clk 0:02:51.2]} 5. a3 {[%clk 0:02:37.8]}
5... Nf6 {[%clk 0:02:03]} 6. Nc3 {[%clk 0:02:37.4]} 6... d5 {[%clk 0:02:00.7]}
7. Bb5 {[%clk 0:02:33.1]} 7... Bd7 {[%clk 0:01:54.5]} 8. exd5 {[%clk 0:02:33.3]}
8... exd5 {[%clk 0:01:54.1]} 9. O-O {[%clk 0:02:25.3]} 9... Be7 {[%clk 0:01:51]}
10. Bg5 {[%clk 0:02:22.7]} 10... O-O {[%clk 0:01:49.3]} 11. Re1 {[%clk 0:02:16]}
11... h6 {[%clk 0:01:47.7]} 12. Bh4 {[%clk 0:02:14.7]} 12... Re8 {[%clk
0:01:42.2]} 13. Nf3 {[%clk 0:02:10.3]} 13... a6 {[%clk 0:01:37.3]} 14. Bd3
{[%clk 0:01:41.1]} 14... Be6 {[%clk 0:01:17.5]} 15. Ne2 {[%clk 0:01:26.6]} 15...
Qb6 {[%clk 0:01:17]} 16. Rb1 {[%clk 0:01:20.3]} 16... Ne4 {[%clk 0:01:16.7]} 17.
Bg3 {[%clk 0:01:17.9]} 17... Rad8 {[%clk 0:01:14.2]} 18. c3 {[%clk 0:01:12.3]}
18... Bc5 {[%clk 0:01:11.2]} 19. Rf1 {[%clk 0:01:09.9]} 19... Bg4 {[%clk
0:01:08.7]} 20. Nf4 {[%clk 0:00:57.7]} 20... Ne5 {[%clk 0:01:02.4]} 21. Be2
{[%clk 0:00:53.3]} 21... Bxf3 {[%clk 0:00:53]} 22. Bxf3 {[%clk 0:00:53.4]} 22...
Nxf3+ {[%clk 0:00:52.9]} 23. Qxf3 {[%clk 0:00:54.3]} 23... Nd2 {[%clk
0:00:53.2]} 24. Qg4 {[%clk 0:00:52.8]} 24... Nxb1 {[%clk 0:00:52.1]} 25. Rxb1
{[%clk 0:00:53.3]} 25... Qxb2 {[%clk 0:00:46.4]} 26. Rf1 {[%clk 0:00:52.3]}
26... Qxc3 {[%clk 0:00:42]} 27. Nh5 {[%clk 0:00:52.3]} 27... Qd4 {[%clk
0:00:38.3]} 28. Qh3 {[%clk 0:00:47.5]} 28... Re2 {[%clk 0:00:35.9]} 29. Nf4
{[%clk 0:00:47.3]} 29... Rd2 {[%clk 0:00:33.7]} 30. Qf5 {[%clk 0:00:45.4]} 30...
Rd1 {[%clk 0:00:33.2]} 31. Bh4 {[%clk 0:00:35.1]} 31... Rxf1+ {[%clk 0:00:32.2]}
0-1

[Event "Early-Titled-Tuesday-Blitz-September-12-2023"]
[Site "Chess.com"]
[Date "2023.09.12"]
[Round "1"]
[White "rikchessmx"]
[Black "Vesper2018"]
[Result "0-1"]
[WhiteElo "2293"]
[BlackElo "2597"]
[TimeControl "180+1"]
[EndTime "8:06:18 PDT"]
[Termination "Vesper2018 won by checkmate"]

1. e4 {[%clk 0:01:59.3]} 1... c5 {[%clk 0:02:56.4]} 2. Nf3 {[%clk 0:01:58.6]}
2... d6 {[%clk 0:02:56.7]} 3. d4 {[%clk 0:01:58.5]} 3... cxd4 {[%clk 0:02:57.1]}
4. Nxd4 {[%clk 0:01:59.2]} 4... Nf6 {[%clk 0:02:57.7]} 5. Nc3 {[%clk 0:01:59.2]}
5... a6 {[%clk 0:02:58.2]} 6. f4 {[%clk 0:01:59.2]} 6... e5 {[%clk 0:02:57.2]}
7. Nf3 {[%clk 0:01:58.4]} 7... Nbd7 {[%clk 0:02:56.7]} 8. Bd3 {[%clk 0:01:58.7]}
8... Be7 {[%clk 0:02:55.7]} 9. O-O {[%clk 0:01:59.1]} 9... O-O {[%clk 0:02:55]}
10. Kh1 {[%clk 0:01:54]} 10... b5 {[%clk 0:02:47.7]} 11. a3 {[%clk 0:01:46.3]}
11... Bb7 {[%clk 0:02:47.5]} 12. Qe1 {[%clk 0:01:45.3]} 12... Qc7 {[%clk
0:02:42]} 13. fxe5 {[%clk 0:01:44.8]} 13... dxe5 {[%clk 0:02:38]} 14. Bg5 {[%clk
0:01:43.8]} 14... h6 {[%clk 0:02:20.5]} 15. Be3 {[%clk 0:01:42]} 15... Bc5
{[%clk 0:02:04.3]} 16. Nh4 {[%clk 0:01:23.2]} 16... Bxe3 {[%clk 0:01:47.4]} 17.
Qxe3 {[%clk 0:00:39.3]} 17... Qb6 {[%clk 0:01:47.6]} 18. Qg3 {[%clk 0:00:38.8]}
18... Nh5 {[%clk 0:01:42.7]} 19. Qf3 {[%clk 0:00:37.4]} 19... Ndf6 {[%clk
0:01:33.9]} 20. Nf5 {[%clk 0:00:37.3]} 20... Bc8 {[%clk 0:01:31.8]} 21. Ne7+
{[%clk 0:00:34.1]} 21... Kh8 {[%clk 0:01:31.6]} 22. Ncd5 {[%clk 0:00:34]} 22...
Nxd5 {[%clk 0:01:29.6]} 23. Nxd5 {[%clk 0:00:34.9]} 23... Qg6 {[%clk 0:01:26.4]}
24. h3 {[%clk 0:00:27]} 24... Ng3+ {[%clk 0:01:22.5]} 25. Kh2 {[%clk 0:00:27.3]}
25... Nxf1+ {[%clk 0:01:22.5]} 26. Rxf1 {[%clk 0:00:28.1]} 26... Be6 {[%clk
0:01:19.5]} 27. Nc7 {[%clk 0:00:27.5]} 27... Rac8 {[%clk 0:01:18.7]} 28. Nxe6
{[%clk 0:00:27.6]} 28... Qxe6 {[%clk 0:01:18.5]} 29. Qf5 {[%clk 0:00:27.3]}
29... Qxf5 {[%clk 0:01:18.7]} 30. Rxf5 {[%clk 0:00:28.2]} 30... f6 {[%clk
0:01:19.1]} 31. g4 {[%clk 0:00:28.3]} 31... Rc5 {[%clk 0:01:17.3]} 32. Kg3
{[%clk 0:00:29.2]} 32... a5 {[%clk 0:01:17.3]} 33. h4 {[%clk 0:00:30.1]} 33...
g6 {[%clk 0:01:16.3]} 34. Rf3 {[%clk 0:00:29.3]} 34... b4 {[%clk 0:01:16.6]} 35.
axb4 {[%clk 0:00:28.9]} 35... axb4 {[%clk 0:01:17]} 36. b3 {[%clk 0:00:29.8]}
36... Ra5 {[%clk 0:01:14.9]} 37. g5 {[%clk 0:00:29.9]} 37... hxg5 {[%clk
0:01:14.3]} 38. hxg5 {[%clk 0:00:29.9]} 38... Kg7 {[%clk 0:01:15]} 39. gxf6+
{[%clk 0:00:30.1]} 39... Rxf6 {[%clk 0:01:14.9]} 40. Re3 {[%clk 0:00:30]} 40...
Ra1 {[%clk 0:01:14.1]} 41. Re2 {[%clk 0:00:29.8]} 41... Rg1+ {[%clk 0:01:13.2]}
42. Kh2 {[%clk 0:00:29.1]} 42... Rg5 {[%clk 0:01:13.5]} 43. Kh3 {[%clk
0:00:27.2]} 43... Rf1 {[%clk 0:01:13.1]} 44. Kh2 {[%clk 0:00:25.1]} 44... Rf4
{[%clk 0:01:13]} 45. Kh3 {[%clk 0:00:24.3]} 45... Kh6 {[%clk 0:01:13.1]} 46. Re1
{[%clk 0:00:23.3]} 46... Kh5 {[%clk 0:01:13.4]} 47. Ra1 {[%clk 0:00:22.6]} 47...
Rh4# {[%clk 0:01:13.3]} 0-1

[Event "Early-Titled-Tuesday-Blitz-September-12-2023"]
[Site "Chess.com"]
[Date "2023.09.12"]
[Round "1"]
[White "cukin84"]
[Black "ayanakhmetov"]
[Result "0-1"]
[WhiteElo "2224"]
[BlackElo "2571"]
[TimeControl "180+1"]
[EndTime "8:06:18 PDT"]
[Termination "ayanakhmetov won by resignation"]

1. e4 {[%clk 0:03:00.9]} 1... e6 {[%clk 0:02:55.8]} 2. d4 {[%clk 0:02:59.8]}
2... d5 {[%clk 0:02:56.4]} 3. exd5 {[%clk 0:02:59.6]} 3... exd5 {[%clk
0:02:57.3]} 4. Nc3 {[%clk 0:02:59.8]} 4... c6 {[%clk 0:02:56]} 5. Bd3 {[%clk
0:02:59]} 5... Bd6 {[%clk 0:02:56.6]} 6. Nge2 {[%clk 0:02:54.6]} 6... Ne7 {[%clk
0:02:56.3]} 7. O-O {[%clk 0:02:53.6]} 7... O-O {[%clk 0:02:55.3]} 8. Bf4 {[%clk
0:02:52.5]} 8... Bf5 {[%clk 0:02:55.3]} 9. Bxd6 {[%clk 0:02:49.2]} 9... Qxd6
{[%clk 0:02:56.2]} 10. Ng3 {[%clk 0:02:49.2]} 10... Bg6 {[%clk 0:02:53.3]} 11.
Nce2 {[%clk 0:02:48.4]} 11... Nd7 {[%clk 0:02:50.3]} 12. c3 {[%clk 0:02:47.4]}
12... Nf6 {[%clk 0:02:45.8]} 13. Qc2 {[%clk 0:02:44.8]} 13... a5 {[%clk
0:02:36.8]} 14. Rae1 {[%clk 0:02:43.2]} 14... a4 {[%clk 0:02:35.4]} 15. a3
{[%clk 0:02:42.9]} 15... b5 {[%clk 0:02:32.1]} 16. Nf5 {[%clk 0:02:33.1]} 16...
Nxf5 {[%clk 0:02:28.4]} 17. Bxf5 {[%clk 0:02:32.6]} 17... Rfe8 {[%clk 0:02:29]}
18. Ng3 {[%clk 0:02:31.9]} 18... Nd7 {[%clk 0:02:23.6]} 19. Qd2 {[%clk
0:02:27.7]} 19... Nb6 {[%clk 0:02:21.1]} 20. Qg5 {[%clk 0:02:26.3]} 20... Nc4
{[%clk 0:02:17.3]} 21. h4 {[%clk 0:02:20.7]} 21... f6 {[%clk 0:01:51.3]} 22. Qc1
{[%clk 0:02:16.8]} 22... Rxe1 {[%clk 0:01:37.9]} 23. Rxe1 {[%clk 0:02:15.6]}
23... Re8 {[%clk 0:01:36.5]} 24. h5 {[%clk 0:02:14.5]} 24... Bf7 {[%clk
0:01:34.3]} 25. Rxe8+ {[%clk 0:02:11.8]} 25... Bxe8 {[%clk 0:01:35.2]} 26. Qe1
{[%clk 0:02:07.6]} 26... Bf7 {[%clk 0:01:33.7]} 27. Bd3 {[%clk 0:01:56]} 27...
Nxb2 {[%clk 0:01:28.5]} 28. Bxh7+ {[%clk 0:01:52]} 28... Kxh7 {[%clk 0:01:29.1]}
29. Qb1+ {[%clk 0:01:51.5]} 29... Kg8 {[%clk 0:01:24.9]} 30. Qxb2 {[%clk
0:01:51.2]} 30... Qf4 {[%clk 0:01:23.5]} 31. Qe2 {[%clk 0:01:45.7]} 31... Qc1+
{[%clk 0:01:21.9]} 32. Kh2 {[%clk 0:01:45.4]} 32... Qxa3 {[%clk 0:01:19.2]} 33.
Qe3 {[%clk 0:01:40.5]} 33... Qd6 {[%clk 0:01:17]} 34. f4 {[%clk 0:01:38.3]}
34... Qa3 {[%clk 0:01:10.1]} 35. h6 {[%clk 0:01:32.6]} 35... g6 {[%clk
0:01:06.2]} 36. Ne2 {[%clk 0:01:13]} 36... Qf8 {[%clk 0:01:03.7]} 37. Qh3 {[%clk
0:01:11.4]} 37... a3 {[%clk 0:01:03.3]} 38. h7+ {[%clk 0:01:07.6]} 38... Kh8
{[%clk 0:01:03.7]} 39. Qh4 {[%clk 0:01:05]} 39... a2 {[%clk 0:00:59.7]} 40.
Qxf6+ {[%clk 0:01:04.2]} 40... Kxh7 {[%clk 0:01:00.4]} 41. f5 {[%clk 0:00:56.9]}
41... Qg7 {[%clk 0:00:46.7]} 42. Qg5 {[%clk 0:00:53.6]} 42... Qh6+ {[%clk
0:00:45.9]} 0-1

[Event "Early-Titled-Tuesday-Blitz-September-12-2023"]
[Site "Chess.com"]
[Date "2023.09.12"]
[Round "1"]
[White "Polish_fighter3000"]
[Black "DishonorOnYourCow"]
[Result "1-0"]
[WhiteElo "3062"]
[BlackElo "2529"]
[TimeControl "180+1"]
[EndTime "8:06:19 PDT"]
[Termination "Polish_fighter3000 won on time"]

1. e4 {[%clk 0:03:00.9]} 1... c5 {[%clk 0:02:57.5]} 2. f4 {[%clk 0:03:00.2]}
2... d6 {[%clk 0:02:57.1]} 3. Be2 {[%clk 0:02:59.6]} 3... Nc6 {[%clk 0:02:57.3]}
4. c3 {[%clk 0:02:59.4]} 4... e5 {[%clk 0:02:53.3]} 5. d3 {[%clk 0:02:57.7]}
5... g6 {[%clk 0:02:49.4]} 6. Nf3 {[%clk 0:02:49.8]} 6... Bg7 {[%clk 0:02:49.4]}
7. O-O {[%clk 0:02:50.4]} 7... Nge7 {[%clk 0:02:47.3]} 8. a4 {[%clk 0:02:50]}
8... O-O {[%clk 0:02:47]} 9. Na3 {[%clk 0:02:50.6]} 9... b6 {[%clk 0:02:41.8]}
10. Nc4 {[%clk 0:02:47.4]} 10... exf4 {[%clk 0:02:14.8]} 11. Bxf4 {[%clk
0:02:48.3]} 11... d5 {[%clk 0:02:15.3]} 12. Nd6 {[%clk 0:02:46.3]} 12... Ba6
{[%clk 0:01:56]} 13. Rb1 {[%clk 0:02:34]} 13... Nc8 {[%clk 0:01:48.2]} 14. exd5
{[%clk 0:02:23.5]} 14... Nxd6 {[%clk 0:01:46.5]} 15. dxc6 {[%clk 0:02:23.7]}
15... Nf5 {[%clk 0:01:40.1]} 16. b4 {[%clk 0:02:15]} 16... cxb4 {[%clk 0:01:38]}
17. cxb4 {[%clk 0:02:15.9]} 17... b5 {[%clk 0:01:32.8]} 18. d4 {[%clk 0:02:10]}
18... Nxd4 {[%clk 0:01:19.8]} 19. Nxd4 {[%clk 0:02:05.7]} 19... Qxd4+ {[%clk
0:01:11.7]} 20. Qxd4 {[%clk 0:02:04.6]} 20... Bxd4+ {[%clk 0:01:12.6]} 21. Kh1
{[%clk 0:02:05]} 21... Bc8 {[%clk 0:01:05.5]} 22. axb5 {[%clk 0:01:55.3]} 22...
Bf5 {[%clk 0:01:04.6]} 23. Rbd1 {[%clk 0:01:55.7]} 23... Bc3 {[%clk 0:01:04.1]}
24. Bd6 {[%clk 0:01:49.9]} 24... Rfe8 {[%clk 0:01:04.3]} 25. Bf3 {[%clk
0:01:46.2]} 25... Bc2 {[%clk 0:00:51.7]} 26. Bd5 {[%clk 0:01:35.9]} 26... Bxd1
{[%clk 0:00:43]} 27. Bxf7+ {[%clk 0:01:35.8]} 27... Kg7 {[%clk 0:00:42.8]} 28.
Bxe8 {[%clk 0:01:36.2]} 28... Be2 {[%clk 0:00:38.3]} 29. Rf7+ {[%clk 0:01:30.5]}
29... Kh6 {[%clk 0:00:35.9]} 30. Bd7 {[%clk 0:01:23.4]} 30... Bxb5 {[%clk
0:00:33.9]} 31. h4 {[%clk 0:01:20.6]} 31... g5 {[%clk 0:00:12.4]} 32. Bf5 {[%clk
0:01:20.8]} 32... Bg7 {[%clk 0:00:05.9]} 33. Be5 {[%clk 0:01:20.9]} 33... Rg8
{[%clk 0:00:04]} 34. c7 {[%clk 0:01:20.2]} 34... Ba6 {[%clk 0:00:02]} 35. g4
{[%clk 0:01:04.4]} 1-0

[Event "Early-Titled-Tuesday-Blitz-September-12-2023"]
[Site "Chess.com"]
[Date "2023.09.12"]
[Round "1"]
[White "BigAl"]
[Black "younix2022"]
[Result "1-0"]
[WhiteElo "2546"]
[BlackElo "2010"]
[TimeControl "180+1"]
[EndTime "8:06:20 PDT"]
[Termination "BigAl won by resignation"]

1. Nf3 {[%clk 0:02:57.6]} 1... Nf6 {[%clk 0:02:55.8]} 2. g3 {[%clk 0:02:57.5]}
2... g6 {[%clk 0:02:55]} 3. Bg2 {[%clk 0:02:58.4]} 3... Bg7 {[%clk 0:02:55.9]}
4. O-O {[%clk 0:02:59.1]} 4... O-O {[%clk 0:02:56.8]} 5. d3 {[%clk 0:03:00]}
5... c5 {[%clk 0:02:52.8]} 6. e4 {[%clk 0:02:59.8]} 6... d6 {[%clk 0:02:51.8]}
7. e5 {[%clk 0:02:59.7]} 7... dxe5 {[%clk 0:02:51.4]} 8. Nxe5 {[%clk 0:03:00.2]}
8... Nbd7 {[%clk 0:02:48.1]} 9. Nc4 {[%clk 0:02:47.2]} 9... Qc7 {[%clk
0:02:29.8]} 10. Nc3 {[%clk 0:02:44]} 10... a6 {[%clk 0:02:25.4]} 11. a4 {[%clk
0:02:43.8]} 11... e5 {[%clk 0:02:15.5]} 12. Re1 {[%clk 0:02:39.7]} 12... Re8
{[%clk 0:02:15]} 13. a5 {[%clk 0:02:32.5]} 13... Rb8 {[%clk 0:01:58.5]} 14. f4
{[%clk 0:02:25.3]} 14... b5 {[%clk 0:01:37.4]} 15. axb6 {[%clk 0:02:24.2]} 15...
Nxb6 {[%clk 0:01:35.8]} 16. Nxe5 {[%clk 0:02:08.8]} 16... Ng4 {[%clk 0:01:18.6]}
17. Nxg4 {[%clk 0:01:50.1]} 17... Rxe1+ {[%clk 0:01:16.7]} 18. Qxe1 {[%clk
0:01:50.2]} 18... Bxg4 {[%clk 0:01:17.2]} 19. Rxa6 {[%clk 0:01:43]} 19... Bd4+
{[%clk 0:01:13.6]} 20. Kh1 {[%clk 0:01:42.6]} 20... Bh3 {[%clk 0:01:08.5]} 21.
Qe4 {[%clk 0:01:13.2]} 21... Bxg2+ {[%clk 0:00:53.7]} 22. Kxg2 {[%clk
0:01:11.8]} 22... Rd8 {[%clk 0:00:45.6]} 23. f5 {[%clk 0:00:48.3]} 23... Kg7
{[%clk 0:00:42.9]} 24. Bf4 {[%clk 0:00:42.6]} 1-0

[Event "Early-Titled-Tuesday-Blitz-September-12-2023"]
[Site "Chess.com"]
[Date "2023.09.12"]
[Round "1"]
[White "sara_khm"]
[Black "turayev_shahruh17"]
[Result "0-1"]
[WhiteElo "2462"]
[BlackElo "2825"]
[TimeControl "180+1"]
[EndTime "8:06:22 PDT"]
[Termination "turayev_shahruh17 won by resignation"]

1. d4 {[%clk 0:02:58.4]} 1... Nf6 {[%clk 0:02:57.5]} 2. Nf3 {[%clk 0:02:58.6]}
2... c5 {[%clk 0:02:58.4]} 3. e3 {[%clk 0:02:58.8]} 3... d5 {[%clk 0:02:57.5]}
4. b3 {[%clk 0:02:58.4]} 4... g6 {[%clk 0:02:54.7]} 5. Bb2 {[%clk 0:02:57.5]}
5... Bg7 {[%clk 0:02:55.6]} 6. dxc5 {[%clk 0:02:57.7]} 6... O-O {[%clk 0:02:54]}
7. Nbd2 {[%clk 0:02:57.9]} 7... Qa5 {[%clk 0:02:33.8]} 8. Bd4 {[%clk 0:02:54.5]}
8... Nc6 {[%clk 0:02:28.1]} 9. Be2 {[%clk 0:02:50]} 9... Ne4 {[%clk 0:02:08.7]}
10. Bxg7 {[%clk 0:02:45.4]} 10... Kxg7 {[%clk 0:02:07]} 11. O-O {[%clk
0:02:45.4]} 11... Nc3 {[%clk 0:01:53.9]} 12. Qe1 {[%clk 0:02:45.7]} 12... Nxe2+
{[%clk 0:01:54.1]} 13. Qxe2 {[%clk 0:02:46]} 13... Qxc5 {[%clk 0:01:54.7]} 14.
c4 {[%clk 0:02:46.2]} 14... Bg4 {[%clk 0:01:48.5]} 15. cxd5 {[%clk 0:02:40.4]}
15... Qxd5 {[%clk 0:01:47.8]} 16. h3 {[%clk 0:02:40.8]} 16... Bxf3 {[%clk
0:01:47]} 17. Nxf3 {[%clk 0:02:41.2]} 17... e5 {[%clk 0:01:45]} 18. Rfd1 {[%clk
0:02:41.5]} 18... Qe6 {[%clk 0:01:42.4]} 19. Qb5 {[%clk 0:02:34.5]} 19... Qe7
{[%clk 0:01:41.8]} 20. Rd2 {[%clk 0:02:31.8]} 20... a6 {[%clk 0:01:40.7]} 21.
Qb6 {[%clk 0:02:27.9]} 21... Rfd8 {[%clk 0:01:39.5]} 22. Rad1 {[%clk 0:02:27.5]}
22... f6 {[%clk 0:01:32.8]} 23. Rxd8 {[%clk 0:02:14.3]} 23... Rxd8 {[%clk
0:01:33.7]} 24. Rxd8 {[%clk 0:02:13.9]} 24... Nxd8 {[%clk 0:01:31.9]} 25. Nd2
{[%clk 0:02:13.1]} 25... f5 {[%clk 0:01:19.7]} 26. Nc4 {[%clk 0:02:12.4]} 26...
Nc6 {[%clk 0:01:16.8]} 27. Nb2 {[%clk 0:01:49.6]} 27... e4 {[%clk 0:01:11.2]}
28. Na4 {[%clk 0:01:45.7]} 28... Kf6 {[%clk 0:00:58.6]} 29. Nc5 {[%clk
0:01:44.9]} 29... Qd8 {[%clk 0:00:58]} 30. Qxd8+ {[%clk 0:01:32.3]} 30... Nxd8
{[%clk 0:00:58.9]} 31. Kf1 {[%clk 0:01:26.8]} 31... Ke7 {[%clk 0:00:54.7]} 32.
Ke2 {[%clk 0:01:22.8]} 32... Kd6 {[%clk 0:00:54.8]} 33. Na4 {[%clk 0:01:16]}
33... b5 {[%clk 0:00:54.4]} 34. Nc3 {[%clk 0:01:11.7]} 34... Kc5 {[%clk
0:00:54.5]} 35. Kd2 {[%clk 0:01:12.1]} 35... Kb4 {[%clk 0:00:52.4]} 36. Kc2
{[%clk 0:00:49.9]} 36... Ka3 {[%clk 0:00:52.5]} 37. Kb1 {[%clk 0:00:49.5]} 37...
Nc6 {[%clk 0:00:52.4]} 38. Nd5 {[%clk 0:00:49.9]} 38... Nb4 {[%clk 0:00:43]} 39.
f3 {[%clk 0:00:49.9]} 39... Nxd5 {[%clk 0:00:41]} 0-1

[Event "Early-Titled-Tuesday-Blitz-September-12-2023"]
[Site "Chess.com"]
[Date "2023.09.12"]
[Round "1"]
[White "FGHSMN"]
[Black "Machteld145"]
[Result "1-0"]
[WhiteElo "2896"]
[BlackElo "2495"]
[TimeControl "180+1"]
[EndTime "8:06:24 PDT"]
[Termination "FGHSMN won by resignation"]

1. e4 {[%clk 0:03:00.9]} 1... c5 {[%clk 0:02:59.7]} 2. Nf3 {[%clk 0:03:00.9]}
2... e6 {[%clk 0:02:59.2]} 3. d4 {[%clk 0:03:00.7]} 3... cxd4 {[%clk 0:02:59.6]}
4. Nxd4 {[%clk 0:03:01.6]} 4... Nf6 {[%clk 0:02:59.9]} 5. Nc3 {[%clk 0:03:01.2]}
5... Nc6 {[%clk 0:03:00]} 6. a3 {[%clk 0:03:00.6]} 6... Be7 {[%clk 0:02:59.2]}
7. Be3 {[%clk 0:02:58.8]} 7... O-O {[%clk 0:02:58.8]} 8. Be2 {[%clk 0:02:58.7]}
8... d5 {[%clk 0:02:58.6]} 9. exd5 {[%clk 0:02:57.7]} 9... Nxd5 {[%clk
0:02:57.6]} 10. Nxd5 {[%clk 0:02:57.3]} 10... Qxd5 {[%clk 0:02:53]} 11. Bf3
{[%clk 0:02:42.6]} 11... Qc4 {[%clk 0:02:36.6]} 12. Nxc6 {[%clk 0:02:32.8]}
12... bxc6 {[%clk 0:02:34.1]} 13. Qe2 {[%clk 0:02:32.3]} 13... Qxe2+ {[%clk
0:02:15.3]} 14. Bxe2 {[%clk 0:02:33.2]} 14... Rd8 {[%clk 0:02:05.6]} 15. Rd1
{[%clk 0:02:26.8]} 15... Bb7 {[%clk 0:02:01.9]} 16. O-O {[%clk 0:02:23.1]} 16...
c5 {[%clk 0:01:59.2]} 17. f3 {[%clk 0:02:15.6]} 17... Rac8 {[%clk 0:01:54.3]}
18. Kf2 {[%clk 0:02:12.7]} 18... Bf6 {[%clk 0:01:53.3]} 19. Rxd8+ {[%clk
0:01:56.2]} 19... Bxd8 {[%clk 0:01:43.5]} 20. Rd1 {[%clk 0:01:53]} 20... Bb6
{[%clk 0:01:32.2]} 21. Bc4 {[%clk 0:01:47.4]} 21... Kf8 {[%clk 0:01:31.9]} 22.
a4 {[%clk 0:01:41.7]} 22... Ke7 {[%clk 0:01:28.2]} 23. Bf4 {[%clk 0:01:38.9]}
23... Bc7 {[%clk 0:01:26.5]} 24. Bg5+ {[%clk 0:01:32.4]} 24... f6 {[%clk
0:01:26]} 25. Be3 {[%clk 0:01:32.2]} 25... Bb6 {[%clk 0:01:21.7]} 26. b3 {[%clk
0:01:23.1]} 26... Rd8 {[%clk 0:01:21.2]} 27. Rxd8 {[%clk 0:01:22.2]} 27... Kxd8
{[%clk 0:01:18.6]} 28. Bxe6 {[%clk 0:01:22]} 28... Ke7 {[%clk 0:01:16.8]} 29.
Bg8 {[%clk 0:01:20.6]} 29... h6 {[%clk 0:01:16.1]} 30. a5 {[%clk 0:01:18.6]}
30... Bxa5 {[%clk 0:01:09.9]} 31. Bxc5+ {[%clk 0:01:18.8]} 31... Kd7 {[%clk
0:01:09.8]} 32. Bxa7 {[%clk 0:01:19.2]} 32... Bc3 {[%clk 0:01:09.8]} 33. Bh7
{[%clk 0:01:16.8]} 33... Kd6 {[%clk 0:01:08.3]} 34. Ke3 {[%clk 0:01:14.3]} 34...
Ke5 {[%clk 0:01:07.1]} 35. Be4 {[%clk 0:01:12.1]} 35... Ba6 {[%clk 0:01:01.7]}
36. f4+ {[%clk 0:01:11.8]} 36... Ke6 {[%clk 0:01:01.3]} 37. Bd4 {[%clk
0:01:12.7]} 37... Ba5 {[%clk 0:00:58.9]} 38. c3 {[%clk 0:01:08.7]} 38... f5
{[%clk 0:00:58.5]} 39. Bf3 {[%clk 0:01:02.9]} 39... g5 {[%clk 0:00:58.6]} 40. g3
{[%clk 0:01:02.2]} 40... gxf4+ {[%clk 0:00:56.4]} 41. Kxf4 {[%clk 0:00:58.9]}
41... Bc7+ {[%clk 0:00:56.3]} 42. Ke3 {[%clk 0:00:58.7]} 42... Bb5 {[%clk
0:00:55.5]} 43. c4 {[%clk 0:00:58.4]} 43... Ba6 {[%clk 0:00:52.5]} 44. Bd5+
{[%clk 0:00:58.7]} 44... Kd6 {[%clk 0:00:51.3]} 45. Kf4 {[%clk 0:00:55.9]} 45...
Bc8 {[%clk 0:00:49]} 46. Be5+ {[%clk 0:00:55.5]} 46... Kd7 {[%clk 0:00:45]} 47.
Bxc7 {[%clk 0:00:54.9]} 47... Kxc7 {[%clk 0:00:44.2]} 48. c5 {[%clk 0:00:55.6]}
1-0

[Event "Early-Titled-Tuesday-Blitz-September-12-2023"]
[Site "Chess.com"]
[Date "2023.09.12"]
[Round "1"]
[White "artooon"]
[Black "whiteglovethief"]
[Result "1-0"]
[WhiteElo "3053"]
[BlackElo "2528"]
[TimeControl "180+1"]
[EndTime "8:06:25 PDT"]
[Termination "artooon won on time"]

1. e4 {[%clk 0:03:00.9]} 1... e6 {[%clk 0:02:56.7]} 2. d4 {[%clk 0:03:00.8]}
2... d5 {[%clk 0:02:57.3]} 3. Nd2 {[%clk 0:03:01.2]} 3... c5 {[%clk 0:02:57.2]}
4. Ngf3 {[%clk 0:03:01.6]} 4... Nc6 {[%clk 0:02:56.4]} 5. Bb5 {[%clk 0:02:59.9]}
5... cxd4 {[%clk 0:02:56.5]} 6. Nxd4 {[%clk 0:03:00.8]} 6... Bd7 {[%clk
0:02:56.3]} 7. Nxc6 {[%clk 0:03:01.4]} 7... Bxc6 {[%clk 0:02:56.3]} 8. Qe2
{[%clk 0:02:59.1]} 8... Nf6 {[%clk 0:02:47.8]} 9. O-O {[%clk 0:02:57.2]} 9...
Be7 {[%clk 0:02:45.7]} 10. exd5 {[%clk 0:02:47.1]} 10... Qxd5 {[%clk 0:02:42.3]}
11. Bxc6+ {[%clk 0:02:47.3]} 11... Qxc6 {[%clk 0:02:42.4]} 12. Nf3 {[%clk
0:02:47.7]} 12... O-O {[%clk 0:02:41]} 13. c3 {[%clk 0:02:48.1]} 13... h6 {[%clk
0:02:37.2]} 14. Be3 {[%clk 0:02:35.3]} 14... b6 {[%clk 0:02:34.3]} 15. Bd4
{[%clk 0:02:34.2]} 15... Nd5 {[%clk 0:02:28.2]} 16. a4 {[%clk 0:02:33.9]} 16...
Bc5 {[%clk 0:02:08.3]} 17. a5 {[%clk 0:02:26.6]} 17... Nf4 {[%clk 0:02:01.2]}
18. Qc4 {[%clk 0:01:53.4]} 18... Qe4 {[%clk 0:01:27.7]} 19. Rfe1 {[%clk
0:01:52.8]} 19... Qg6 {[%clk 0:01:23.5]} 20. g3 {[%clk 0:01:52.9]} 20... Bxd4
{[%clk 0:01:11.8]} 21. Qxd4 {[%clk 0:01:53.8]} 21... Nd5 {[%clk 0:00:56.6]} 22.
a6 {[%clk 0:01:46.8]} 22... Rfd8 {[%clk 0:00:51.2]} 23. Rad1 {[%clk 0:01:40.7]}
23... Qf6 {[%clk 0:00:41.3]} 24. Qe4 {[%clk 0:01:26.1]} 24... Rac8 {[%clk
0:00:27.1]} 25. Ne5 {[%clk 0:01:20.3]} 25... Qe7 {[%clk 0:00:25.9]} 26. h4
{[%clk 0:01:09.2]} 26... Nf6 {[%clk 0:00:23.1]} 27. Qb7 {[%clk 0:00:53.7]} 27...
Rxd1 {[%clk 0:00:10.5]} 28. Qxc8+ {[%clk 0:00:53.8]} 28... Rd8 {[%clk
0:00:09.5]} 29. Nc6 {[%clk 0:00:52.9]} 1-0